bitfinex/quotes_SOLUSD_20220117
["timestamp","ask_amount","ask_price","bid_price","bid_amount"]
[1642395815034,10.567,142.01,141.91,70.50150683]
[1642395815332,10.567,142.01,141.91,70.75150683]
[1642395815533,10.5656,142.03,141.91,70.75150683]
[1642395815935,41.50833173,142.02,141.91,70.75150683]
[1642395817737,10.5641,142.05,141.91,76.75150683]
[1642395817940,10.5641,142.05,141.92,0.26]
[1642395818138,45.3736,142.09,141.95,10.5631]
[1642395818336,45.3736,142.09,141.95,18.8491]
[1642395818536,150.7137,142.12,141.95,33.3091]
[1642395818736,48.41276121,142.11,141.96,66.76213946]
[1642395818937,10.5628,142.07,141.96,67.01213946]
[1642395819237,59.97386621,142.07,141.96,67.01213946]
[1642395819437,59.97386621,142.07,141.97,10.5618]
[1642395819839,60.22386621,142.07,141.97,10.5618]
[1642395820440,60.22386621,142.07,141.97,19.0218]
[1642395820639,10.5628,142.07,141.97,19.0218]
[1642395820838,10.5628,142.07,141.97,19.2718]
[1642395821441,10.5607,142.09,141.97,19.2718]
[1642395821641,37.12894355,142.09,141.97,89.3218]
[1642395822864,37.12894355,142.09,141.97,95.3218]
[1642395823262,37.12894355,142.09,141.97,89.3218]
[1642395823463,47.68964355,142.09,141.97,19.2718]
[1642395823664,47.68964355,142.09,141.97,19.0218]
[1642395823863,47.68964355,142.09,141.97,8.46]
[1642395824764,47.93964355,142.09,141.97,8.46]
[1642395825768,10.5607,142.09,141.97,14.49]
[1642395825975,10.5607,142.09,141.97,14.74]
[1642395826671,10.5607,142.09,141.97,25.3019]
[1642395826872,54.92643214,142.09,141.97,25.3019]
[1642395827269,10.5592,142.11,141.97,25.3019]
[1642395828271,48.63816914,142.1,141.97,25.3019]
[1642395828472,48.63816914,142.1,142.01,10.5585]
[1642395828671,38.07836914,142.1,142.02,41.17210231]
[1642395828876,38.07836914,142.1,142.02,41.42210231]
[1642395829274,10.5584,142.12,142.02,41.42210231]
[1642395830373,50.52645714,142.12,142.02,51.98030231]
[1642395831173,10.5584,142.12,142.02,51.98030231]
[1642395831374,10.5584,142.12,142.03,8.46]
[1642395831774,10.5584,142.12,142.03,8.71]
[1642395834007,35.1917,142.17,142.03,8.71]
[1642395834179,10.5569,142.14,142.03,19.2667]
[1642395834378,35.1917,142.17,142.03,19.2667]
[1642395834577,0.25,142.17,142.03,19.2667]
[1642395834777,0.25,142.17,142.04,48.6777]
[1642395834980,40.55256501,142.16,142.05,45.06101633]
[1642395835177,40.55256501,142.16,142.05,53.52101633]
[1642395835377,40.55256501,142.16,142.05,53.77101633]
[1642395836179,40.80256501,142.16,142.05,53.77101633]
[1642395836381,51.10796501,142.16,142.05,64.32611633]
[1642395836580,40.55256501,142.16,142.06,70.05]
[1642395836782,40.55256501,142.16,142.07,8.46]
[1642395836980,129.2839,142.2,142.07,8.46]
[1642395836981,129.2839,142.2,142.08,70.05]
[1642395837381,129.5339,142.2,142.08,70.3]
[1642395837585,10.5539,142.18,142.08,70.3]
[1642395837783,129.91949502,142.23,142.08,70.3]
[1642395837983,47.43690949,142.2,142.09,83.70293911]
[1642395838382,47.43690949,142.2,142.09,83.95293911]
[1642395839083,57.98950949,142.2,142.09,83.95293911]
[1642395839685,57.98950949,142.2,142.09,83.70293911]
[1642395840287,57.98950949,142.2,142.09,36.37683911]
[1642395840487,57.98950949,142.2,142.08,8.46]
[1642395840689,58.23950949,142.2,142.08,8.46]
[1642395840887,3.78219524,142.19,142.08,8.46]
[1642395841088,10.5569,142.16,142.08,8.46]
[1642395841525,38.49277542,142.15,142.08,8.46]
[1642395842317,35.1842,142.2,142.09,40.76847623]
[1642395842517,29.07781453,142.24,142.09,47.70247623]
[1642395842720,5.58741453,142.2,142.09,47.95247623]
[1642395843017,5.58741453,142.2,142.09,47.70247623]
[1642395843417,48.00889015,142.19,142.09,47.95247623]
[1642395844017,48.00889015,142.19,142.09,41.01847623]
[1642395844717,48.00889015,142.19,142.1,8.46]
[1642395845420,58.81189015,142.19,142.09,40.76847623]
[1642395846218,62.62562796,142.19,142.09,40.76847623]
[1642395848221,18.19301117,142.18,142.09,40.76847623]
[1642395848823,14.36773781,142.18,142.09,40.76847623]
[1642395849224,14.36773781,142.18,142.08,8.46]
[1642395849423,14.61773781,142.18,142.08,8.46]
[1642395849624,14.61773781,142.18,141.92,0.66]
[1642395849825,7.65794312,142.17,142.03,8.46]
[1642395850025,10.5576,142.13,142.03,8.46]
[1642395850225,45.88002238,142.12,142.04,43.19688023]
[1642395850425,46.13002238,142.12,142.03,8.46]
[1642395851526,56.68842238,142.12,142.03,8.46]
[1642395852131,56.68842238,142.12,142.01,48.28698553]
[1642395852828,55.68842238,142.12,142.01,48.53698553]
[1642395853233,59.50216019,142.12,142.01,48.53698553]
[1642395853428,59.25216019,142.12,142.01,48.53698553]
[1642395853628,59.50216019,142.12,142.01,48.53698553]
[1642395853831,59.25216019,142.12,142.01,48.53698553]
[1642395854029,44.88002238,142.12,142.02,8.46]
[1642395854229,44.88002238,142.12,142.02,78.77]
[1642395854430,44.88002238,142.12,142.02,79.02]
[1642395854830,44.88002238,142.12,142.02,8.97]
[1642395855033,14.37053781,142.14,142.02,8.97]
[1642395855231,3.81373781,142.14,142.02,17.594]
[1642395856038,49.37026545,142.13,142.02,17.594]
[1642395856230,49.37026545,142.13,142.04,48.74466501]
[1642395856431,49.37026545,142.13,142.04,48.99466501]
[1642395856934,14.36963781,142.15,142.04,48.99466501]
[1642395857132,3.81373781,142.14,142.04,57.45466501]
[1642395857531,3.81373781,142.14,142.04,127.50466501]
[1642395857733,50.38776721,142.14,142.04,127.50466501]
[1642395858435,46.5740294,142.14,142.04,57.45466501]
[1642395860467,46.5740294,142.14,142.05,70.05]
[1642395860667,3.81373781,142.15,142.06,8.46]
[1642395860868,3.81373781,142.15,142.06,8.71]
[1642395861467,5.58741453,142.18,142.06,8.71]
[1642395861468,3.81373781,142.14,142.06,78.76]
[1642395861668,3.81373781,142.14,142.07,48.20617766]
[1642395861868,3.81373781,142.14,142.08,8.46]
[1642395862368,3.81373781,142.14,142.08,8.71]
[1642395862567,3.81373781,142.15,142.08,14.917]
[1642395862767,3.81373781,142.15,142.08,84.967]
[1642395862967,3.81373781,142.15,142.08,84.717]
[1642395863168,3.81373781,142.15,142.08,84.967]
[1642395863371,7.70029799,142.16,142.08,84.967]
[1642395864367,3.81373781,142.16,142.08,84.967]
[1642395865368,3.81373781,142.16,142.09,0.26]
[1642395865568,3.81373781,142.16,142.11,46.62774969]
[1642395865769,48.28525807,142.19,142.12,190.51]
[1642395865770,3.88656018,142.19,142.12,190.51]
[1642395865970,3.88656018,142.19,142.12,191.02]
[1642395866372,5.58741453,142.21,142.12,8.46]
[1642395866773,38.23028202,142.2,142.12,8.46]
[1642395867575,44.23028202,142.2,142.12,8.46]
[1642395867774,5.58741453,142.23,142.13,70.05]
[1642395867976,10.5509,142.22,142.14,8.46]
[1642395868175,5.58741453,142.23,142.14,8.46]
[1642395868776,49.21270883,142.22,142.15,35.95380334]
[1642395868979,49.21270883,142.22,142.15,44.41380334]
[1642395869779,10.5502,142.23,142.15,44.41380334]
[1642395870180,10.5502,142.23,142.15,8.46]
[1642395871184,14.53213488,142.22,142.15,8.46]
[1642395871381,14.53213488,142.22,142.16,47.98668929]
[1642395871980,10.5508,142.22,142.16,47.98668929]
[1642395872783,1.99711632,142.19,142.16,54.14868929]
[1642395872984,0.00711632,142.19,142.17,6.06439994]
[1642395873184,5.58741453,142.25,142.18,59.0]
[1642395873586,36.12720736,142.26,142.19,43.20197685]
[1642395873786,36.12720736,142.26,142.19,49.66497685]
[1642395873986,5.58741453,142.27,142.19,49.66497685]
[1642395874189,5.58741453,142.27,142.19,128.17497685]
[1642395874585,5.58741453,142.27,142.19,58.12497685]
[1642395874988,3.99246227,142.25,142.19,58.12497685]
[1642395875387,3.99246227,142.25,142.19,58.37497685]
[1642395875688,3.99246227,142.25,142.19,58.12497685]
[1642395875889,3.99246227,142.25,142.2,0.26]
[1642395876088,5.58741453,142.3,142.21,8.46]
[1642395876287,5.58741453,142.3,142.22,42.0745106]
[1642395876487,5.58741453,142.3,142.22,50.5345106]
[1642395876690,5.58741453,142.3,142.22,50.7845106]
[1642395876887,41.99435327,142.31,142.22,57.2065106]
[1642395877092,3.99246227,142.3,142.23,70.05]
[1642395877288,3.99246227,142.3,142.24,8.46]
[1642395877486,3.99246227,142.3,142.24,78.51]
[1642395877886,3.99246227,142.3,142.24,78.76]
[1642395878389,3.99246227,142.3,142.25,43.80136211]
[1642395878589,3.99246227,142.3,142.24,8.46]
[1642395879018,44.25266438,142.31,142.24,8.46]
[1642395879786,3.99246227,142.3,142.24,8.46]
[1642395880387,13.03746227,142.3,142.24,8.46]
[1642395880588,13.03746227,142.3,142.24,37.38715151]
[1642395880892,13.03746227,142.3,142.22,8.46]
[1642395881294,10.545,142.3,142.22,8.46]
[1642395881893,10.795,142.3,142.22,8.46]
[1642395882090,12.49577588,142.3,142.22,8.46]
[1642395882291,18.49577588,142.3,142.17,8.46]
[1642395882689,44.46388257,142.28,142.17,8.46]
[1642395882890,10.5505,142.26,142.17,8.46]
[1642395883090,10.5505,142.26,142.14,24.0093]
[1642395883393,1.70077588,142.25,142.14,24.0093]
[1642395883791,7.95077588,142.25,142.14,24.0093]
[1642395883990,37.46356571,142.24,142.14,70.29424981]
[1642395884191,39.16434159,142.24,142.14,70.29424981]
[1642395884396,10.5514,142.22,142.14,70.29424981]
[1642395884791,37.01055584,142.21,142.14,24.0093]
[1642395884992,37.01055584,142.21,142.12,10.12]
[1642395885192,37.26055584,142.21,142.12,10.12]
[1642395885392,49.51303172,142.21,142.08,73.4369]
[1642395885594,125.56303172,142.21,142.09,10.12]
[1642395885793,125.56303172,142.21,142.09,39.3721306]
[1642395886592,125.56303172,142.21,142.07,10.12]
[1642395886994,125.56303172,142.21,142.07,10.37]
[1642395887392,125.56303172,142.21,142.07,10.12]
[1642395887593,125.56303172,142.21,142.08,35.00836572]
[1642395888396,131.87959618,142.21,142.07,10.12]
[1642395888794,131.87959618,142.21,142.07,10.37]
[1642395889396,131.87959618,142.21,142.08,45.0646007]
[1642395889600,61.82959618,142.21,142.08,45.0646007]
[1642395889796,60.1288203,142.21,142.08,45.3146007]
[1642395890297,55.82959618,142.21,142.08,45.0646007]
[1642395891398,61.82959618,142.21,142.08,45.0646007]
[1642395891999,61.82959618,142.21,142.08,55.1846007]
[1642395892801,60.1288203,142.21,142.08,55.1846007]
[1642395894399,53.81225584,142.21,142.08,55.1846007]
[1642395895001,53.81225584,142.21,142.08,55.4346007]
[1642395895309,53.81225584,142.21,142.08,125.4846007]
[1642395895502,53.81225584,142.21,142.08,125.2346007]
[1642395895800,53.81225584,142.21,142.08,125.4846007]
[1642395896302,53.81225584,142.21,142.08,55.4346007]
[1642395896502,53.81225584,142.21,142.08,55.1846007]
[1642395896701,71.75077588,142.2,142.08,55.1846007]
[1642395896903,10.5557,142.17,142.08,55.1846007]
[1642395897103,46.4077999,142.16,142.08,55.1846007]
[1642395897504,46.4077999,142.16,142.08,10.12]
[1642395898507,57.2131999,142.16,142.09,34.97973159]
[1642395899607,56.9631999,142.16,142.09,34.97973159]
[1642395900210,10.5543,142.18,142.09,34.97973159]
[1642395901012,10.8043,142.18,142.09,34.97973159]
[1642395901214,44.91592409,142.17,142.09,35.22973159]
[1642395901540,45.16592409,142.17,142.06,24.3071]
[1642395901742,55.72072409,142.17,142.06,24.3071]
[1642395902450,55.72072409,142.17,142.06,24.5571]
[1642395902641,55.72072409,142.17,142.07,35.70644751]
[1642395904143,55.72072409,142.17,142.07,35.95644751]
[1642395904342,10.5548,142.17,142.07,35.95644751]
[1642395904541,10.5535,142.19,142.08,10.12]
[1642395904746,10.5535,142.19,142.09,70.05]
[1642395904947,10.5535,142.19,142.09,70.3]
[1642395905344,10.5535,142.19,142.1,41.93221021]
[1642395905543,6.0,142.2,142.1,41.93221021]
[1642395905744,22.13941453,142.21,142.1,52.30221021]
[1642395905945,16.13941453,142.21,142.1,52.30221021]
[1642395906145,5.58741453,142.21,142.11,0.26]
[1642395906346,44.698347,142.2,142.11,18.238]
[1642395906745,44.698347,142.2,142.11,18.488]
[1642395906950,44.698347,142.2,142.11,18.228]
[1642395907153,44.948347,142.2,142.11,18.228]
[1642395907550,44.948347,142.2,142.11,17.978]
[1642395908246,44.948347,142.2,142.11,10.12]
[1642395908449,46.64912288,142.2,142.11,10.12]
[1642395909447,57.20182288,142.2,142.11,10.12]
[1642395909649,57.20182288,142.2,142.1,41.93221021]
[1642395909846,63.20182288,142.2,142.1,41.93221021]
[1642395910046,57.20182288,142.2,142.1,41.93221021]
[1642395910647,55.501047,142.2,142.1,41.93221021]
[1642395911247,57.20182288,142.2,142.09,10.12]
[1642395911450,63.20182288,142.2,142.09,10.12]
[1642395912148,63.20182288,142.2,142.1,38.66966214]
[1642395912548,61.501047,142.2,142.1,38.66966214]
[1642395914351,61.501047,142.2,142.09,10.12]
[1642395914551,1.70077588,142.19,142.09,10.12]
[1642395914751,10.5583,142.16,142.05,47.5164]
[1642395914952,16.8083,142.16,142.05,47.5164]
[1642395915152,1.70077588,142.15,142.05,47.5164]
[1642395915357,36.07584513,142.14,142.06,41.80944115]
[1642395915852,52.88304513,142.14,142.06,41.80944115]
[1642395916053,46.88304513,142.14,142.06,41.80944115]
[1642395918353,46.63304513,142.14,142.06,41.80944115]
[1642395919956,10.8072,142.14,142.06,41.80944115]
[1642395922457,16.8072,142.14,142.06,41.80944115]
[1642395923262,16.8072,142.14,142.04,22.6857]
[1642395923459,88.55797588,142.14,142.03,10.12]
[1642395923759,70.05,142.12,141.99,79.0892]
[1642395923958,10.564,142.09,141.99,79.0892]
[1642395924159,42.03335937,142.08,141.99,45.36119735]
[1642395924357,83.49735937,142.08,141.99,45.36119735]
[1642395925360,10.5642,142.06,141.99,45.36119735]
[1642395925764,10.8142,142.06,141.99,45.36119735]
[1642395925959,43.10052932,142.05,141.99,45.36119735]
[1642395926859,53.66422932,142.05,141.99,45.36119735]
[1642395927060,53.91422932,142.05,141.99,45.36119735]
[1642395927965,10.8137,142.05,141.99,45.36119735]
[1642395928365,10.5637,142.05,141.99,45.36119735]
[1642395928763,41.214,142.08,141.99,45.36119735]
[1642395928963,83.16856065,142.08,141.99,45.36119735]
[1642395929564,83.16856065,142.08,141.97,10.12]
[1642395929863,83.16856065,142.08,141.97,10.37]
[1642395930463,10.5629,142.06,141.97,34.4112]
[1642395930668,47.56247638,142.05,141.98,39.09919711]
[1642395930867,47.56247638,142.05,141.98,39.34919711]
[1642395931064,47.81247638,142.05,141.98,39.09919711]
[1642395931864,53.81247638,142.05,141.98,39.09919711]
[1642395932265,47.81247638,142.05,141.98,39.09919711]
[1642395932569,134.42617638,142.05,141.97,24.0412]
[1642395932766,66.07695226,142.05,141.97,24.0412]
[1642395932966,64.37617638,142.05,141.92,89.9538]
[1642395933264,64.37617638,142.05,141.93,22.5632]
[1642395933469,64.37617638,142.05,141.93,61.26537589]
[1642395934166,134.42617638,142.05,141.93,61.26537589]
[1642395934366,134.42617638,142.05,141.93,61.51537589]
[1642395934567,1.70077588,142.04,141.93,61.51537589]
[1642395934767,10.5665,142.01,141.93,61.51537589]
[1642395934966,10.8165,142.01,141.93,22.5632]
[1642395935367,86.8665,142.01,141.9,10.12]
[1642395935566,1.70077588,142.0,141.89,48.5085]
[1642395935770,10.5726,141.97,141.85,10.12]
[1642395935970,20.38474137,141.96,141.81,10.12]
[1642395936168,22.08551725,141.96,141.8,52.8926559]
[1642395936371,10.12,141.95,141.8,46.9154]
[1642395936667,81.87077588,141.95,141.8,46.9154]
[1642395936868,88.12077588,141.95,141.8,46.9154]
[1642395937169,88.12077588,141.95,141.81,47.19737707]
[1642395937369,46.69506289,141.93,141.81,47.19737707]
[1642395937567,20.6956,141.92,141.81,47.19737707]
[1642395937868,26.9456,141.92,141.81,47.19737707]
[1642395938167,20.6956,141.92,141.81,47.19737707]
[1642395939169,26.6956,141.92,141.81,47.19737707]
[1642395939669,26.9456,141.92,141.81,47.19737707]
[1642395941370,26.6956,141.92,141.81,117.49737707]
[1642395941570,10.5722,141.94,141.81,123.49737707]
[1642395941773,10.5722,141.94,141.82,95.0005]
[1642395941970,10.5722,141.94,141.82,95.2505]
[1642395942172,10.12,141.97,141.82,105.3705]
[1642395942371,16.12,141.97,141.82,111.3705]
[1642395943005,10.5707,141.96,141.82,111.3705]
[1642395943303,10.12,142.01,141.83,1.24457614]
[1642395943503,10.12,142.02,141.85,80.6182]
[1642395943706,6.0,142.01,141.86,58.5692]
[1642395943902,10.12,142.02,141.87,70.05]
[1642395943903,16.12,142.02,141.87,70.05]
[1642395944105,48.47893267,142.01,141.89,48.60477839]
[1642395944308,48.47893267,142.01,141.9,22.9498]
[1642395944605,54.47893267,142.01,141.9,22.9498]
[1642395944807,48.47893267,142.01,141.9,93.2498]
[1642395945405,10.5679,142.0,141.9,93.2498]
[1642395946105,10.5679,142.0,141.9,23.1998]
[1642395947106,10.8179,142.0,141.9,22.9498]
[1642395947306,16.8179,142.0,141.9,22.9498]
[1642395949010,16.5679,142.0,141.9,23.1998]
[1642395949614,16.5679,142.0,141.9,22.9498]
[1642395949811,10.5679,142.0,141.9,23.1998]
[1642395950011,10.5679,142.0,141.9,22.9498]
[1642395950415,10.8179,142.0,141.9,22.9498]
[1642395950612,16.8179,142.0,141.9,22.9498]
[1642395950812,16.8179,142.0,141.89,48.60477839]
[1642395951817,10.8179,142.0,141.89,48.60477839]
[1642395952818,16.8179,142.0,141.89,48.60477839]
[1642395954049,16.5679,142.0,141.89,48.60477839]
[1642395954218,16.5679,142.0,141.89,48.85477839]
[1642395954418,26.6879,142.0,141.89,48.85477839]
[1642395954718,26.6879,142.0,141.89,48.60477839]
[1642395955318,26.9379,142.0,141.89,48.60477839]
[1642395955516,26.6879,142.0,141.89,48.60477839]
[1642395955918,26.6879,142.0,141.89,72.25547839]
[1642395955919,20.6879,142.0,141.89,72.25547839]
[1642395956119,20.6879,142.0,141.89,72.50547839]
[1642395956921,10.5679,142.0,141.89,72.50547839]
[1642395957322,10.5679,142.0,141.9,0.26]
[1642395957520,48.47893267,142.01,141.9,0.26]
[1642395957920,48.47893267,142.01,141.9,70.31]
[1642395958320,48.47893267,142.01,141.9,70.56]
[1642395959131,59.04583267,142.01,141.9,70.56]
[1642395959627,59.04583267,142.01,141.9,0.25]
[1642395959825,59.04583267,142.01,141.89,72.50547839]
[1642395960927,59.04583267,142.01,141.9,0.26]
[1642395961331,59.04583267,142.01,141.89,72.50547839]
[1642395961757,65.04583267,142.01,141.89,72.25547839]
[1642395961956,1.70077588,142.0,141.89,72.25547839]
[1642395962155,10.5705,141.97,141.89,23.6507]
[1642395962355,10.8205,141.97,141.89,23.6507]
[1642395963157,49.48191127,141.96,141.89,23.6507]
[1642395963657,10.5718,141.95,141.89,23.6507]
[1642395966764,10.5718,141.95,141.86,23.8343]
[1642395966961,10.5718,141.95,141.86,24.0843]
[1642395967363,10.5718,141.95,141.86,64.69250824]
[1642395968063,10.5718,141.95,141.86,64.44250824]
[1642395968064,10.8218,141.95,141.86,64.44250824]
[1642395968666,10.8218,141.95,141.85,24.5793]
[1642395968865,16.8218,141.95,141.85,24.5793]
[1642395969068,10.8218,141.95,141.85,24.5793]
[1642395969269,10.5718,141.95,141.85,24.5793]
[1642395969670,10.5718,141.95,141.86,44.25528084]
[1642395970668,49.48191127,141.96,141.86,44.25528084]
[1642395970868,49.48191127,141.96,141.86,51.53928084]
[1642395971071,55.48191127,141.96,141.86,51.28928084]
[1642395971670,49.48191127,141.96,141.86,51.53928084]
[1642395971873,49.48191127,141.96,141.86,44.50528084]
[1642395972472,60.05291127,141.96,141.86,44.50528084]
[1642395974174,10.571,141.96,141.86,44.50528084]
[1642395974377,10.5699,141.98,141.86,44.50528084]
[1642395974578,10.5699,141.98,141.87,24.2273]
[1642395974975,41.79432312,141.97,141.87,24.4773]
[1642395975176,41.79432312,141.97,141.87,94.5273]
[1642395975375,41.79432312,141.97,141.87,24.4773]
[1642395975577,41.79432312,141.97,141.87,24.2273]
[1642395975975,41.79432312,141.97,141.87,24.4773]
[1642395977578,10.12,141.99,141.87,24.4773]
[1642395977776,10.12,141.99,141.88,70.05]
[1642395977979,10.12,141.99,141.88,70.3]
[1642395978379,10.5684,142.0,141.88,70.3]
[1642395978578,41.69507159,141.98,141.89,35.52785141]
[1642395979381,41.69507159,141.98,141.89,35.77785141]
[1642395981015,22.6307,142.01,141.89,35.77785141]
[1642395981213,22.6307,142.01,141.9,93.6877]
[1642395981412,22.6307,142.01,141.9,93.9377]
[1642395981813,33.968,142.02,141.9,93.9377]
[1642395982013,16.12,142.02,141.9,93.9377]
[1642395982218,47.36802255,142.01,141.9,93.9377]
[1642395982413,57.93572255,142.01,141.9,93.9377]
[1642395983514,57.93572255,142.01,141.9,23.8877]
[1642395984516,57.43572255,142.01,141.9,23.8877]
[1642395987821,63.43572255,142.01,141.9,23.8877]
[1642395988020,57.43572255,142.01,141.9,23.8877]
[1642395988221,57.43572255,142.01,141.9,23.6377]
[1642395988821,57.68572255,142.01,141.9,23.6377]
[1642395989322,63.68572255,142.01,141.9,23.6377]
[1642395989524,57.68572255,142.01,141.9,23.6377]
[1642395989728,63.68572255,142.01,141.9,23.6377]
[1642395989923,63.43572255,142.01,141.9,23.6377]
[1642395990124,63.43572255,142.01,141.9,23.8877]
[1642395990527,10.12,142.02,141.9,32.4927]
[1642395990725,3.83064679,142.04,141.91,10.38]
[1642395990924,3.83064679,142.04,141.91,10.63]
[1642395991124,3.83064679,142.04,141.92,70.05]
[1642395991325,3.83064679,142.04,141.92,16.37]
[1642395991555,37.43918506,142.03,141.93,41.64765115]
[1642395991928,37.43918506,142.03,141.93,41.89765115]
[1642395992127,37.43918506,142.03,141.93,65.11115115]
[1642395992329,37.43918506,142.03,141.93,75.67465115]
[1642395992726,37.68918506,142.03,141.94,0.26]
[1642395993127,37.68918506,142.03,141.93,75.67465115]
[1642395993328,37.68918506,142.03,141.93,65.11115115]
[1642395993727,43.68918506,142.03,141.93,64.86115115]
[1642395994329,45.59652524,142.03,141.93,64.86115115]
[1642395994529,45.59652524,142.03,141.92,10.12]
[1642395994730,63.08682524,142.03,141.9,12.12510096]
[1642395994932,73.20682524,142.03,141.9,12.12510096]
[1642395995531,73.20682524,142.03,141.91,42.85692525]
[1642395995831,1.90734018,142.01,141.91,42.85692525]
[1642395996030,46.97759712,142.0,141.91,42.85692525]
[1642395996431,0.25,142.0,141.91,43.10692525]
[1642395996631,0.25,142.0,141.92,22.7971]
[1642395997031,0.25,142.0,141.92,23.0471]
[1642395997435,44.30274435,142.0,141.92,23.0471]
[1642395998635,1.90734018,142.03,141.92,23.0471]
[1642395998836,1.90734018,142.03,141.92,93.0971]
[1642395998837,2.15734018,142.03,141.92,93.0971]
[1642395999059,2.15734018,142.03,141.92,23.0471]
[1642395999459,41.87664867,142.02,141.92,23.0471]
[1642395999860,42.12664867,142.02,141.92,23.0471]
[1642396000861,1.90734018,142.03,141.93,70.05]
[1642396001061,0.25,142.02,141.94,22.606]
[1642396001261,1.90734018,142.03,141.94,92.656]
[1642396001461,2.15734018,142.03,141.94,92.906]
[1642396001861,51.16431239,142.03,141.95,47.6419224]
[1642396002264,49.25697221,142.03,141.95,47.6419224]
[1642396002666,59.82307221,142.03,141.95,47.6419224]
[1642396002964,59.57307221,142.03,141.95,47.6419224]
[1642396003764,49.00697221,142.03,141.95,47.6419224]
[1642396004665,49.25697221,142.03,141.95,47.6419224]
[1642396004865,49.25697221,142.03,141.95,47.8919224]
[1642396005566,49.25697221,142.03,141.95,47.6419224]
[1642396006367,49.25697221,142.03,141.94,22.606]
[1642396006771,55.25697221,142.03,141.94,22.606]
[1642396006971,60.91397221,142.03,141.92,2.00510096]
[1642396007173,71.03397221,142.03,141.91,2.00510096]
[1642396007372,70.05,142.02,141.91,2.00510096]
[1642396007572,10.5698,141.99,141.92,42.56619955]
[1642396007785,44.98453197,141.98,141.92,42.56619955]
[1642396007977,44.98453197,141.98,141.91,2.00510096]
[1642396008175,45.23453197,141.98,141.89,23.667]
[1642396008974,44.98453197,141.98,141.9,36.4083814]
[1642396009375,45.23453197,141.98,141.9,36.4083814]
[1642396010177,51.23453197,141.98,141.9,36.4083814]
[1642396010581,51.23453197,141.98,141.89,23.917]
[1642396011376,51.23453197,141.98,141.89,23.667]
[1642396011576,61.80473197,141.98,141.9,49.22092832]
[1642396013380,51.23453197,141.98,141.9,49.22092832]
[1642396015380,6.25,141.98,141.9,49.22092832]
[1642396015783,18.02734018,142.0,141.9,119.27092832]
[1642396015981,6.0,141.98,141.91,23.4456]
[1642396016186,8.15734018,142.0,141.91,23.4456]
[1642396016380,46.77442887,142.0,141.91,23.6956]
[1642396016588,44.61708869,142.0,141.91,93.7456]
[1642396017812,44.61708869,142.0,141.91,93.4956]
[1642396017985,44.61708869,142.0,141.91,93.7456]
[1642396018184,44.86708869,142.0,141.91,93.7456]
[1642396018786,44.86708869,142.0,141.91,93.4956]
[1642396019185,6.0,142.0,141.91,93.7456]
[1642396019388,7.90734018,142.02,141.92,10.38]
[1642396019688,1.90734018,142.02,141.92,10.38]
[1642396019885,7.90734018,142.02,141.93,70.05]
[1642396020085,7.90734018,142.02,141.94,41.54506078]
[1642396020488,2.15734018,142.02,141.94,41.79506078]
[1642396020686,2.15734018,142.02,141.94,66.08596078]
[1642396020885,0.25,142.02,141.94,66.08596078]
[1642396021284,36.55541985,142.03,141.94,66.08596078]
[1642396021685,38.46276003,142.03,141.94,66.08596078]
[1642396021888,44.46276003,142.03,141.94,66.08596078]
[1642396022287,10.5669,142.02,141.94,66.08596078]
[1642396022685,16.8169,142.02,141.94,66.08596078]
[1642396022886,16.5669,142.02,141.94,66.08596078]
[1642396023085,10.5669,142.02,141.94,66.08596078]
[1642396023287,16.5669,142.02,141.94,66.08596078]
[1642396024185,16.8169,142.02,141.94,66.08596078]
[1642396024389,16.5669,142.02,141.94,66.33596078]
[1642396024586,38.21276003,142.03,141.94,66.33596078]
[1642396024786,1.90734018,142.03,141.95,70.05]
[1642396024987,1.90734018,142.03,141.95,71.29457614]
[1642396025187,1.90734018,142.03,141.95,81.66457614]
[1642396025386,1.90734018,142.03,141.96,1.50457614]
[1642396025587,1.90734018,142.03,141.97,20.6815]
[1642396025787,1.90734018,142.06,141.98,70.05]
[1642396025987,44.97529315,142.06,141.99,45.89301767]
[1642396026188,44.97529315,142.06,141.99,51.85601767]
[1642396026390,44.97529315,142.06,141.99,52.10601767]
[1642396026888,43.06795297,142.06,141.99,52.10601767]